Cogmind - Beta 13 @@@ ROGUE MODE // 2024.04.21 @ 17:02:56 Player: NOGames Result: Self-destructed Performance ------------- Evolutions (2) 1000 Regions Visited (4) 800 Robots Destroyed (39) 195 Value Destroyed (1001) 1001 Prototype IDs (4) 80 Alien Tech Used (0) 0 Bonus (16) 16 TOTAL SCORE: 3092 Bonus ------- High Alert Combat Kills 16 Cogmind --------- Core Integrity 434/550 Matter 288/300 Energy 160/160 System Corruption 0% Temperature Cool (0) Movement Treading (160) Location -8/Materials Parts ------- > --- POWER (1) -------- Light Nuclear Core > --- PROPULSION (3) --- Light Treads Light Treads Light Treads > --- UTILITY (3) ------ Small Storage Unit Visual Processing Unit Light Armor Plating > --- WEAPON (4) ------- Advanced Beam Cannon Mace > --- INVENTORY (8) ---- Ion Engine Heavy Ion Engine Structural Scanner Light Armor Plating Drone Bay (2/2) Peak State ------------ > --- POWER ------------ Heavy Ion Engine > --- PROPULSION ------- Light Treads Light Treads > --- UTILITY ---------- Small Storage Unit Structural Scanner > --- WEAPON ----------- Advanced Beam Cannon Advanced Beam Cannon Improved Assault Rifle Mace > --- INVENTORY -------- Ion Engine Light Treads Structural Scanner Visual Processing Unit Light Armor Plating Light Armor Plating Drone Bay [Rating: 19] Favorites ----------- Power Heavy Ion Engine Engine Heavy Ion Engine Power Core Light Nuclear Core Propulsion Light Treads Treads Light Treads Leg Aluminum Leg Utility Small Storage Unit Device Structural Scanner Storage Small Storage Unit Processor Visual Processing Unit Protection Light Armor Plating Weapon Mace Energy Gun Medium Laser Energy Cannon Advanced Beam Cannon Ballistic Gun Light Assault Rifle Launcher Rocket Launcher Impact Weapon Mace Build | -11 -10 -9 -9 -8 ------- Run | Yrd Mat Mat Sto Mat Slots Evolved 4 | . . 2 . 2 Power . | . . . . . Propulsion 1 | . . . . 1 Utility 1 | . . . . 1 Weapon 2 | . . 2 . . Parts Attached 18 | 2 2 3 7 4 Power 3 | . 1 1 1 . Engine 2 | . 1 1 . . Core 1 | . . . 1 . Reactor . | . . . . . Propulsion 5 | 2 . . 2 1 Treads 5 | 2 . . 2 1 Leg . | . . . . . Wheel . | . . . . . Hover . | . . . . . Flight . | . . . . . Utility 3 | . 1 . . 2 Device 1 | . 1 . . . Storage . | . . . . . Processor 1 | . . . . 1 Hackware . | . . . . . Protection 1 | . . . . 1 Artifact . | . . . . . Weapon 7 | . . 2 4 1 Energy Gun 1 | . . . 1 . Energy Cannon 2 | . . . 2 . Ballistic Gun 2 | . . 1 1 . Ballistic Cannon . | . . . . . Launcher 1 | . . . . 1 Special Weapon . | . . . . . Impact Weapon 1 | . . 1 . . Slashing Weapon . | . . . . . Piercing Weapon . | . . . . . Special Melee Weapon . | . . . . . Unidentified Prototypes 4 | . . 1 3 . Parts Lost 8 | . 1 . 4 3 Power . | . . . . . Propulsion 2 | . . . 2 . Utility 1 | . . . . 1 Weapon 5 | . 1 . 2 2 Highest Loss Streak 1 | . 1 . 1 1 To Critical Strikes . | . . . . . Average Slot Usage (%) 91 | . 98 73 94 88 Engine 8 | . 14 11 8 . Core 2 | . . . 2 9 Treads 23 | . 28 22 21 27 Device 10 | . 13 11 11 5 Storage 11 | . 14 11 11 9 Energy Gun 7 | . 27 . 3 . Energy Cannon 7 | . . . 11 12 Ballistic Gun 8 | . . 11 13 . Impact Weapon 7 | . . 7 11 9 Naked Turns . | . . . . . Heaviest Build 27 | 12 15 17 27 23 Greatest Support 60 | 40 40 40 40 60 Greatest Overweight (x) . | . . . . . Average Overweight (x) . | . . . . . Largest Inventory Capacity 8 | 8 8 8 8 8 Average Capacity 8 | 8 8 8 8 8 Most Carried 8 | 6 7 7 8 7 Average Carried 6 | 6 6 6 7 5 Final Capacity 8 | 8 8 8 8 8 Final Carried 8 | 6 7 7 8 5 Class Distribution -------------------- 70% | Mutant 29% | Skirmisher Dominant Class ---------------- Mutant | -10/Materials Mutant | -9/Materials Skirmisher | -9/Storage Mutant | -8/Materials Resources | -11 -10 -9 -9 -8 ----------- Run | Yrd Mat Mat Sto Mat Matter Collected 460 | 187 53 33 141 46 Remotely . | . . . . . Salvage Created 1198 | . 124 129 806 139 Parts 70 | . 7 3 52 8 Haulers Intercepted 1 | . . . 1 . Recyclers Shooed 1 | . . . 1 . Parts Field Recycled . | . . . . . Retrieved Matter . | . . . . . Parts Self-Destructed . | . . . . . Prevented . | . . . . . Kills | -11 -10 -9 -9 -8 ------- Run | Yrd Mat Mat Sto Mat Combat Hostiles Destroyed 30 | . 5 4 15 6 Melee 4 | . . 2 1 1 Guns 11 | . 5 . 6 . Cannons 7 | . . . 7 . AOE 4 | . . . . 4 Classes Destroyed 10 | . 2 1 6 1 Worker 2 | . . . 2 . Builder 1 | . . . 1 . Hauler 1 | . . . 1 . Recycler 1 | . . . 1 . Mechanic 1 | . . . 1 . Operator 2 | . . . 1 1 Watcher 1 | . . . . 1 Swarmer 10 | . 3 . 3 4 Grunt 13 | . 2 3 6 2 Sentry 7 | . . 1 6 . Best Kill Streak 6 | . 2 3 6 5 Combat Bots Only 5 | . 2 3 5 4 Max Kills in Single Turn 3 | . 1 1 1 3 Gunslinging . | . . . . . Exploded 3 | . . . . 3 Melee 1 | . . 1 1 1 Uniques/NPCs Destroyed . | . . . . . Combat | -11 -10 -9 -9 -8 -------- Run | Yrd Mat Mat Sto Mat Hostile Shots Fired 202 | . 30 31 86 55 Missed 61 | . 10 13 23 15 Damage Taken 1888 | . 203 220 890 575 Core 312 | . 49 36 111 116 Absorbed by Shields . | . . . . . Core Remaining (%) 81 | 100 80 . 63 . Volleys Fired 47 | . 14 3 27 3 Largest 3 | . 2 1 3 1 Hottest 159 | . 90 20 159 33 Shots Fired 104 | . 28 3 70 3 Gun 69 | . 28 3 38 . Cannon 32 | . . . 32 . Launcher 3 | . . . . 3 Special . | . . . . . Kinetic 39 | . . 3 36 . Thermal 46 | . 14 . 32 . Explosive 3 | . . . . 3 Electromagnetic 16 | . 14 . 2 . Robot Hit Streak 20 | . 6 4 20 1 Robot Miss Streak 4 | . 4 1 3 1 Penetration Max . | . . . . . Secondary Targets . | . . . . . Shots Hit Robots 111 | . 17 18 60 16 Core Hits 41 | . 7 2 24 8 Critical Kills 2 | . . 2 . . Critical Parts Destroyed 4 | . . 2 1 1 Critical Strikes 8 | . 1 5 1 1 Burn 1 | . 1 . . . Smash 7 | . . 5 1 1 Melee Attacks 67 | . . 21 25 21 Impact 67 | . . 21 25 21 Slashing . | . . . . . Piercing . | . . . . . Sneak Attacks 8 | . . . 7 1 Combat Hostiles . | . . . . . Follow-up Attacks . | . . . . . Damage Inflicted 2902 | . 215 411 1514 762 Guns 484 | . 205 12 267 . Cannons 452 | . . . 452 . Explosions 261 | . . . . 261 Melee 1695 | . . 399 795 501 Ramming 10 | . 10 . . . Kinetic 269 | . . 12 257 . Thermal 564 | . 112 . 452 . Explosive 261 | . . . . 261 Electromagnetic 103 | . 93 . 10 . Impact 1695 | . . 399 795 501 Slashing . | . . . . . Piercing . | . . . . . Highest Corruption 5 | . 5 . . . Average Corruption 4 | . 4 . . . Corruption Purged . | . . . . . Corruption Blocked . | . . . . . Effects 2 | . 2 . . . Parts Rejected 1 | . 1 . . . Data Loss (minor) 1 | . 1 . . . Overload Shots . | . . . . . Overflow Damage 404 | . . 49 286 69 Projectiles . | . . . . . Explosions 6 | . . . . 6 Melee 398 | . . 49 286 63 Knockbacks 4 | . . . . 4 Impact 4 | . . . . 4 Kinetic . | . . . . . Secondary . | . . . . . Self-Inflicted Damage . | . . . . . Shots . | . . . . . Rammed 2 | . 2 . . . Targets Rammed 2 | . 2 . . . Kicked . | . . . . . Crushed . | . . . . . Highest Temperature 262 | . 150 7 262 8 Average Temperature 69 | . 52 4 78 8 Received Heat Transfer 933 | . 66 126 390 351 Siege Activations . | . . . . . Robots Corrupted . | . . . . . Combat Hostiles . | . . . . . Parts Fried 16 | . . 4 9 3 Impact Corruptions 20 | . . 4 13 3 Robots Melted . | . . . . . Combat Hostiles . | . . . . . Parts Melted 4 | . 4 . . . Heat Transferred 1221 | . 407 . 814 . Parts Sabotaged . | . . . . . Parts Stolen . | . . . . . Parts Stripped . | . . . . . Power Chain Reactions . | . . . . . Alert | -11 -10 -9 -9 -8 ------- Run | Yrd Mat Mat Sto Mat Peak Influence 443 | . 168 196 443 386 Initial 186 | . . 66 82 186 Average 194 | . 71 126 247 294 Maximum Alert Level 2 | . . . 2 1 Low Security (%) 64 | 100 100 100 44 32 Level 1 32 | . . . 50 67 Level 2 2 | . . . 4 . Level 3 . | . . . . . Level 4 . | . . . . . Level 5 . | . . . . . High Security . | . . . . . Max Security . | . . . . . Squads Dispatched 7 | . 1 1 2 3 Investigation 2 | . . 1 . 1 Extermination . | . . . . . Reinforcement 4 | . 1 . 2 1 Assault . | . . . . . Garrison 1 | . . . . 1 Intercept . | . . . . . Searches Triggered . | . . . . . Construction Impeded . | . . . . . Haulers Reinforced . | . . . . . Active Scanning Responses . | . . . . . Cargo Convoy Interrupts . | . . . . . Stealth | -11 -10 -9 -9 -8 --------- Run | Yrd Mat Mat Sto Mat Distress Signals 9 | . 2 . 3 4 Communications Jammed . | . . . . . Distress Signals . | . . . . . Times Spotted 56 | . 12 5 25 14 Peak Tracking Total 6 | . 4 3 6 6 Tactical Retreats 2 | . 1 . . 1 Traps | -11 -10 -9 -9 -8 ------- Run | Yrd Mat Mat Sto Mat Traps Triggered 5 | . 3 1 1 . Indirectly . | . . . . . Trap Hack Attempts . | . . . . . Triggered . | . . . . . Disarmed . | . . . . . Reprogrammed . | . . . . . Reused . | . . . . . Traps Extracted . | . . . . . Installed . | . . . . . Triggered . | . . . . . Machines | -11 -10 -9 -9 -8 ---------- Run | Yrd Mat Mat Sto Mat Machines Disabled 2 | . . . 2 . Max in Single Turn 1 | . . . 1 . Machines Repaired . | . . . . . Machines Dismantled . | . . . . . Machines Sabotaged . | . . . . . Overloaded Fab Kills . | . . . . . Hacking | -11 -10 -9 -9 -8 --------- Run | Yrd Mat Mat Sto Mat Machines Accessed 15 | . 3 . 11 1 Terminals 14 | . 3 . 10 1 Fabricators . | . . . . . Repair Stations . | . . . . . Recycling Units . | . . . . . Scanalyzers . | . . . . . Garrison Access 1 | . . . 1 . Total Hacks 33 | . 9 . 18 6 Successful 14 | . 5 . 6 3 Failed 19 | . 4 . 12 3 Catastrophic 4 | . . . 3 1 Database Lockouts . | . . . . . Manual 19 | . 6 . 8 5 Terminals 31 | . 9 . 16 6 Fabricators . | . . . . . Repair Stations . | . . . . . Recycling Units . | . . . . . Scanalyzers . | . . . . . Garrison Access 2 | . . . 2 . Terminal Hacks 10 | . 4 . 5 1 Open Door 5 | . . . 5 . Branch Access Points 1 | . 1 . . . Emergency Access Points 1 | . 1 . . . Recall Reinforcements 1 | . . . . 1 Zone Layout 2 | . 2 . . . Fabricator Hacks . | . . . . . Repair Station Hacks . | . . . . . Recycling Unit Hacks . | . . . . . Scanalyzer . | . . . . . Garrison Access Hacks . | . . . . . Unauthorized Hacks 3 | . 1 . 1 1 Terminals 3 | . 1 . 1 1 Botnet 3 | . 1 . 1 1 Fabricators . | . . . . . Repair Stations . | . . . . . Recycling Units . | . . . . . Scanalyzers . | . . . . . Garrison Access . | . . . . . Data Cores Recovered . | . . . . . Used . | . . . . . Hacking Detections 9 | . 1 . 7 1 Full Trace Events 1 | . . . . 1 Feedback Events . | . . . . . Feedback Blocked . | . . . . . Robot Schematics Acquired . | . . . . . Robots Built . | . . . . . Authchips . | . . . . . Time . | . . . . . Total Robot Build Rating . | . . . . . Part Schematics Acquired . | . . . . . Parts Built . | . . . . . Authchips . | . . . . . Time . | . . . . . Total Part Build Rating . | . . . . . Parts Repaired . | . . . . . Time . | . . . . . Parts Recycled . | . . . . . Recycled Matter . | . . . . . Retrieved Matter . | . . . . . Retrieved Components . | . . . . . Parts Scanalyzed . | . . . . . Part Schematics Acquired . | . . . . . Parts Damaged . | . . . . . Bothacking | -11 -10 -9 -9 -8 ------------ Run | Yrd Mat Mat Sto Mat Used RIF Installer . | . . . . . Robots Hacked . | . . . . . Non-combat . | . . . . . Combat . | . . . . . Robot Hacks Applied . | . . . . . Relay Couplers Released . | . . . . . Fabnet Peak Effective % . | . . . . . Robots Rewired . | . . . . . Allies Hacked . | . . . . . Hacks Repelled . | . . . . . Allies | -11 -10 -9 -9 -8 -------- Run | Yrd Mat Mat Sto Mat Total Allies . | . . . . . Largest Group . | . . . . . Highest-Rated Group . | . . . . . Highest-Rated Ally . | . . . . . Total Orders . | . . . . . Ally Attacks . | . . . . . Total Damage . | . . . . . Kills . | . . . . . Allies Corrupted . | . . . . . Allies Melted . | . . . . . Intel | -11 -10 -9 -9 -8 ------- Run | Yrd Mat Mat Sto Mat Robot Analysis Total . | . . . . . Derelict Logs Recovered . | . . . . . Drone Launches . | . . . . . Drone Recoveries . | . . . . . Exploration | -11 -10 -9 -9 -8 ------------- Run | Yrd Mat Mat Sto Mat Turns Passed 1365 | 3 291 233 686 152 Spaces Moved 594 | 1 148 85 308 52 Core . | . . . . . Treads 594 | 1 148 85 308 52 Legs . | . . . . . Wheels . | . . . . . Hover . | . . . . . Flight . | . . . . . Fastest Speed 160 | 160 160 160 160 160 Average Speed 160 | 160 160 160 160 160 Slowest Speed 160 | 160 160 160 160 160 Overloaded Moves . | . . . . . Propulsion Burnouts . | . . . . . Robots Hopped . | . . . . . Cave-ins Triggered . | . . . . . Exploration Rate (%) 26 | 2 37 10 74 10 Regions Visited 4 Branch Regions 1 Pre-discovered Areas . | . . . . . Known Exits Taken . | . . . . . Unknown Exits Taken 4 | 1 1 1 1 . Scrap Searched . | . . . . . Spaces Dug 2 | . . . 1 1 Terrain Destroyed 21 | . . . 1 20 Melee 2 | . . . 1 1 Projectile . | . . . . . AOE 19 | . . . . 19 Terrain Rammed . | . . . . . Walls Destroyed . | . . . . . Machines Disabled . | . . . . . Actions | -11 -10 -9 -9 -8 --------- Run | Yrd Mat Mat Sto Mat Total 800 | 2 172 142 403 81 Wait 56 | . 7 29 20 . Move 590 | . 147 84 307 52 Hop . | . . . . . Pick Up 11 | . . 1 9 1 Fast Attach 7 | . 1 2 4 . Attach 7 | . . 1 2 4 Detach . | . . . . . Swap 4 | 2 1 . 1 . Drop 9 | . . 1 8 . Fire 47 | . 14 3 27 3 Melee 67 | . . 21 25 21 Ram . | . . . . . Kick . | . . . . . Crush 2 | . 2 . . . Escape Stasis . | . . . . . Rewire . | . . . . . Trap . | . . . . . Miscellaneous . | . . . . . Route ------- -11/Scrapyard -10/Materials (discovered 3 exits: [*Mat] / Min x2) -9/Materials -9/Storage -8/Materials History --------- Turn | Location | Event 4 | -11/Scrapyard | Discovered new exit (range 0) 4 | -11/Scrapyard | Entered Materials 60 | -10/Materials | Identified exit to Mines 268 | -10/Materials | Discovered new exit (range 16) 295 | -10/Materials | Entered another Materials area 295 | -9/Materials | Evolved 2 slots: Weapon x2 316 | -9/Materials | Build established: Mutant 421 | -9/Materials | Discovered new exit (range 16) 528 | -9/Materials | Entered Storage 1201 | -9/Storage | Discovered new exit (range 6) 1214 | -9/Storage | Entered Materials 1214 | -8/Materials | Evolved 2 slots: Propulsion x1, Utility x1 1302 | -8/Materials | Garrison activated, responded to threat 1366 | -8/Materials | Self-destructed Last Messages --------------- (Smash). 01310_ Destroyed Imp. Heat Sink. 01310_ G-47 Trooper system corrupted by crushing effect. 01311_ G-47 Trooper system terminally corrupted. 01313_ W-25 Informer sends out distress signal. 01324_ Critical hit (Burn: +37). 01324_ G-47 Trooper knocked back. 01328_ W-25 Informer sends out distress signal. 01333_ G-47 Trooper knocked back. 01342_ Rocket Launcher destroyed. 01343_ K-01 Serf collects debris. 01350_ M-28 Smith repairs Lgt. Nuclear Core. 01351_ K-01 Serf collects debris. 01352_ M-28 Smith repairs Aluminum Leg. 01353_ G-47 Trooper knocked back. 01354_ M-28 Smith repairs Imp. Heat Sink. 01354_ K-01 Serf collects debris. 01362_ Critical hit (Burn: +37). 01364_ G-47 Trooper knocked back. Map ----- +----------------------------------------------------+ | ????????????????????????? ?????????????????? | | ????????????????????????? ###+##?????????????????? | | ??????????????????????### ##????????????????? | | ??????????????????????# ##????????????????? | | ?????????????????????? ##????????????????? | | ??????????????????????? ##????????????????? | | ??????????????????????? ##???????????????? | | ???????????????????????? * ####??????????????? | | ???????????????????????? %= ###??????????????? | | ????????????????????????? ##??????????????? | | ????????????????????????? # ##??????????????? | | ?????????????????????????# *% ##???????????????? | | ??????????????????######### ##???????????????? | | ??????????????????######### ##???????????????? | | ?????????????????? """ # #########?????????? | | ???????????????????""""" # #########?????????? | | ????????????????## """"" # # !// ##?????????? | | ????????????????## """"" + # !// ##?????????? | | ????????????????## """ " # # ]/ ##?????????? | | ????????????????## T # + ##?????????? | | ????????????????##! " # # ##?????????? | | ????????? ######## # # ############ | | ??????? ################## ################### | | ?????? # | | ?????? m # | | ??????! * @gg # | | ???????????#############g### ########### #+#### | | ???????????########## # # #### # | | ???????????????????## # # ???????## # " | | ???????????????????##] # + ???????## # " | | ???????????????????## "T" #% # ???????## # | | ???????????????????##! """="% # ???????## # " | | ???????????????????## # # ???????## # " | | ???????????????????######### ##???????## # | | ???????????????????######### ##???????## # | | ???????????????????????????? ##???????## # | | ???????????????????????????? # ??????? # ###### | | ???????????????????????????? # ??????? # ###### | | ???????????????????????????? / ??????? # ##???? | | ???????????????????????????? # ??????? + ##???? | | ??????????????????????????????## ????????? ?????? | | ????????????????????????????????? ???????? ?????? | | ????????????????????????????????? ???????????????? | | ?????????????????????????????????? ??????????????? | | ??????????????????????????????????#??????????????? | | ?????????????????????????????????????????????????? | | ?????????????????????????????????????????????????? | | ?????????????????????????????????????????????????? | | ?????????????????????????????????????????????????? | | ?????????????????????????????????????????????????? | +----------------------------------------------------+ Best States ------------- Heat Dissipation 31 Energy Generation 14 Energy Capacity 280 Matter Stores 300 Matter Capacity 300 Sight Range 18 Terrain Scan Density 10 Armor Coverage 150 Evasion (%) 40 Recoil Reduction 3 Item Schematics ----------------- None Robot Schematics ------------------ None Fabricated ------------ Nothing Alien Tech Used ----------------- None Achievements -------------- None Challenges ------------ None Game ------ Seed MassSpacefoldLog Manual? 0 Play Time 00:21:40 Cumulative 11.6 hours Start 2024.04.21 @ 16:43:25 End 2024.04.21 @ 17:02:56 Sessions 1 Manual Loads 0 Difficulty Rogue Special Mode None Game No. 13 Rogue 13 Adventurer 0 Explorer 0 Win Type - Total 0 Types 0/0/0/0/0/0/0/0/0 Lore% 13 Gallery% 19 Achievement% 16 Wizard Run 0 Options --------- Layout 1 ASCII 0 Keyboard 0 Movement Numpad Keybinds 0 Fullscreen 1 Font 24/Smallcaps Map View 50x40 Zoom Use 0% Tactical HUD 1 Map Filters NONE Filters NONE Steam 1 RUN: bbfc379a-ad43-4df4-879a-9a778804533d